[Event "*** Titled Tuesday 3|2 Blitz"]
[Site "Chess.com"]
[Date "2016.02.02"]
[Round "2"]
[White "VSERGUEI"]
[Black "StellarChessPro"]
[Result "1-0"]
[WhiteElo "2394"]
[BlackElo "2231"]
[TimeControl "180+2"]
[EndTime "11:21:56 PST"]
[Termination "VSERGUEI won by resignation"]

1. d4 {[%clk 0:02:32.2]} 1... d5 {[%clk 0:02:58.3]} 2. c4 {[%clk 0:02:32.2]}
2... c6 {[%clk 0:02:58.5]} 3. e3 {[%clk 0:02:32.2]} 3... Nf6 {[%clk 0:02:59.6]}
4. Nc3 {[%clk 0:02:30.6]} 4... e6 {[%clk 0:02:59.1]} 5. b3 {[%clk 0:02:30.1]}
5... Nbd7 {[%clk 0:02:59.4]} 6. Bb2 {[%clk 0:02:29.9]} 6... Bd6 {[%clk
0:02:59.9]} 7. Nf3 {[%clk 0:02:26.2]} 7... O-O {[%clk 0:03:00.5]} 8. Be2 {[%clk
0:02:26.6]} 8... dxc4 {[%clk 0:03:01.3]} 9. bxc4 {[%clk 0:02:26.7]} 9... e5
{[%clk 0:03:02.3]} 10. O-O {[%clk 0:02:26.6]} 10... exd4 {[%clk 0:03:02.9]} 11.
exd4 {[%clk 0:02:26.6]} 11... Re8 {[%clk 0:03:02.3]} 12. a4 {[%clk 0:02:26.5]}
12... h6 {[%clk 0:03:02.6]} 13. a5 {[%clk 0:02:27.2]} 13... a6 {[%clk
0:03:02.8]} 14. Qa4 {[%clk 0:02:21.7]} 14... Bc7 {[%clk 0:03:03.8]} 15. Rfe1
{[%clk 0:02:19.1]} 15... Ne4 {[%clk 0:03:04.6]} 16. Nxe4 {[%clk 0:02:13.2]}
16... Rxe4 {[%clk 0:03:06.5]} 17. Bc3 {[%clk 0:02:09.3]} 17... Nf6 {[%clk
0:03:01.6]} 18. Bd3 {[%clk 0:02:08.7]} 18... Rxe1+ {[%clk 0:03:02.3]} 19. Rxe1
{[%clk 0:02:08.9]} 19... Bg4 {[%clk 0:03:03.4]} 20. Ne5 {[%clk 0:02:09.3]} 20...
Bxe5 {[%clk 0:03:04.1]} 21. Rxe5 {[%clk 0:02:09.6]} 21... Qd7 {[%clk 0:03:01.1]}
22. h3 {[%clk 0:02:09.5]} 22... Bh5 {[%clk 0:02:58.7]} 23. Qc2 {[%clk
0:02:06.2]} 23... Re8 {[%clk 0:02:56.7]} 24. g4 {[%clk 0:01:49.6]} 24... Rxe5
{[%clk 0:01:49.4]} 25. dxe5 {[%clk 0:01:48.2]} 25... Nxg4 {[%clk 0:01:50.6]} 26.
Bh7+ {[%clk 0:01:40.5]} 26... Kh8 {[%clk 0:01:50.4]} 27. Bf5 {[%clk 0:01:41.3]}
27... Bg6 {[%clk 0:01:44.4]} 28. Bxd7 {[%clk 0:01:39.8]} 28... Bxc2 {[%clk
0:01:44.1]} 29. hxg4 {[%clk 0:01:40.7]} 1-0

[Event "*** Titled Tuesday 3|2 Blitz"]
[Site "Chess.com"]
[Date "2016.02.02"]
[Round "2"]
[White "BartoszSocko"]
[Black "kleinebeer98"]
[Result "1-0"]
[WhiteElo "2708"]
[BlackElo "2446"]
[TimeControl "180+2"]
[EndTime "11:23:08 PST"]
[Termination "BartoszSocko won by checkmate"]

1. e4 {[%clk 0:03:01.9]} 1... c5 {[%clk 0:03:00.5]} 2. Nf3 {[%clk 0:03:03.1]}
2... d6 {[%clk 0:03:01.7]} 3. d4 {[%clk 0:03:04.5]} 3... cxd4 {[%clk 0:03:03.6]}
4. Nxd4 {[%clk 0:03:06.4]} 4... Nf6 {[%clk 0:03:05]} 5. Nc3 {[%clk 0:03:08]}
5... a6 {[%clk 0:03:06.5]} 6. g3 {[%clk 0:03:09.5]} 6... e5 {[%clk 0:03:05.5]}
7. Nb3 {[%clk 0:03:10.5]} 7... Be6 {[%clk 0:03:06.4]} 8. Bg2 {[%clk 0:03:11.8]}
8... Nbd7 {[%clk 0:03:07.2]} 9. O-O {[%clk 0:03:13]} 9... Rc8 {[%clk 0:03:08.8]}
10. Re1 {[%clk 0:03:14.2]} 10... Be7 {[%clk 0:03:07.4]} 11. Nd2 {[%clk
0:03:14.9]} 11... b5 {[%clk 0:03:05.8]} 12. Nf1 {[%clk 0:03:14.1]} 12... O-O
{[%clk 0:02:57.7]} 13. Ne3 {[%clk 0:03:14.2]} 13... Nb6 {[%clk 0:02:58.5]} 14.
a4 {[%clk 0:03:06.6]} 14... b4 {[%clk 0:02:35.5]} 15. Ncd5 {[%clk 0:03:07.4]}
15... Bxd5 {[%clk 0:02:36.6]} 16. exd5 {[%clk 0:03:03.6]} 16... Qd7 {[%clk
0:02:17.2]} 17. a5 {[%clk 0:02:51.5]} 17... Nc4 {[%clk 0:02:14.8]} 18. Bf1
{[%clk 0:02:52.6]} 18... Nxe3 {[%clk 0:02:13.1]} 19. Bxe3 {[%clk 0:02:54.5]}
19... Qb7 {[%clk 0:02:12.8]} 20. Qd3 {[%clk 0:02:44.6]} 20... Qxd5 {[%clk
0:02:08.3]} 21. Qxa6 {[%clk 0:02:38.4]} 21... Rxc2 {[%clk 0:02:06.6]} 22. Bg2
{[%clk 0:02:39.5]} 22... Qe6 {[%clk 0:01:56]} 23. Qb7 {[%clk 0:02:28.8]} 23...
Ng4 {[%clk 0:01:18.2]} 24. a6 {[%clk 0:02:22.8]} 24... Nxe3 {[%clk 0:01:18.7]}
25. Rxe3 {[%clk 0:02:24.7]} 25... d5 {[%clk 0:00:36.5]} 26. Bxd5 {[%clk
0:02:21]} 26... Qf6 {[%clk 0:00:23.8]} 27. Rf3 {[%clk 0:02:20.2]} 27... Qg5
{[%clk 0:00:25.4]} 28. a7 {[%clk 0:02:11.5]} 28... Bc5 {[%clk 0:00:22.4]} 29.
Qxf7+ {[%clk 0:02:04.6]} 29... Rxf7 {[%clk 0:00:21]} 30. a8=Q+ {[%clk
0:02:05.8]} 30... Bf8 {[%clk 0:00:22.1]} 31. Bxf7+ {[%clk 0:02:06.1]} 31... Kh8
{[%clk 0:00:23.3]} 32. Qxf8# {[%clk 0:02:07.8]} 1-0

[Event "*** Titled Tuesday 3|2 Blitz"]
[Site "Chess.com"]
[Date "2016.02.02"]
[Round "2"]
[White "Dlugy"]
[Black "Spinaltap"]
[Result "1-0"]
[WhiteElo "2570"]
[BlackElo "2398"]
[TimeControl "180+2"]
[EndTime "11:23:14 PST"]
[Termination "Dlugy won by resignation"]

1. d4 {[%clk 0:03:01.9]} 1... d5 {[%clk 0:02:58.8]} 2. Bf4 {[%clk 0:03:03.4]}
2... c6 {[%clk 0:02:57.8]} 3. e3 {[%clk 0:03:03.4]} 3... Nf6 {[%clk 0:02:52.3]}
4. c4 {[%clk 0:03:04.1]} 4... a6 {[%clk 0:02:51.6]} 5. Nf3 {[%clk 0:03:00.7]}
5... Bg4 {[%clk 0:02:44.2]} 6. Nbd2 {[%clk 0:02:59.4]} 6... e6 {[%clk
0:02:43.5]} 7. h3 {[%clk 0:02:56.7]} 7... Bh5 {[%clk 0:02:43.7]} 8. Be2 {[%clk
0:02:56.3]} 8... Nbd7 {[%clk 0:02:44.6]} 9. O-O {[%clk 0:02:57.1]} 9... Be7
{[%clk 0:02:44.7]} 10. a4 {[%clk 0:02:43.3]} 10... a5 {[%clk 0:02:36.9]} 11. c5
{[%clk 0:02:42.6]} 11... O-O {[%clk 0:02:33.8]} 12. Qb1 {[%clk 0:02:38.8]} 12...
b6 {[%clk 0:02:30.3]} 13. cxb6 {[%clk 0:02:39.2]} 13... Qxb6 {[%clk 0:02:30.7]}
14. Rc1 {[%clk 0:02:39.9]} 14... c5 {[%clk 0:02:27.3]} 15. Bb5 {[%clk
0:02:39.1]} 15... Rac8 {[%clk 0:02:18.8]} 16. dxc5 {[%clk 0:02:22.6]} 16... Nxc5
{[%clk 0:02:15.1]} 17. Ne5 {[%clk 0:02:10.6]} 17... Rfd8 {[%clk 0:01:52.5]} 18.
Ra3 {[%clk 0:01:44.4]} 18... Nb7 {[%clk 0:01:46.2]} 19. Rac3 {[%clk 0:01:43.9]}
19... Rxc3 {[%clk 0:01:43.6]} 20. Rxc3 {[%clk 0:01:45]} 20... Bb4 {[%clk
0:01:34.7]} 21. Rc6 {[%clk 0:01:44.9]} 21... Qa7 {[%clk 0:01:33.8]} 22. Ra6
{[%clk 0:01:42.4]} 22... Qc5 {[%clk 0:01:29.5]} 23. Nb3 {[%clk 0:01:33.5]} 23...
Qf8 {[%clk 0:01:28.9]} 24. Nc6 {[%clk 0:01:31.1]} 24... Rc8 {[%clk 0:01:25.3]}
25. Ra7 {[%clk 0:01:32]} 25... Bg6 {[%clk 0:01:09.5]} 26. Qf1 {[%clk 0:01:28.5]}
1-0

[Event "*** Titled Tuesday 3|2 Blitz"]
[Site "Chess.com"]
[Date "2016.02.02"]
[Round "2"]
[White "Keranke"]
[Black "ikhasu"]
[Result "1-0"]
[WhiteElo "2525"]
[BlackElo "2069"]
[TimeControl "180+2"]
[EndTime "11:23:19 PST"]
[Termination "Keranke won by resignation"]

1. d4 {[%clk 0:02:58.4]} 1... Nf6 {[%clk 0:02:42.8]} 2. c4 {[%clk 0:02:57.9]}
2... e6 {[%clk 0:02:40.8]} 3. Nc3 {[%clk 0:02:58.6]} 3... d5 {[%clk 0:02:40.8]}
4. cxd5 {[%clk 0:02:58.7]} 4... exd5 {[%clk 0:02:41.3]} 5. Bg5 {[%clk
0:03:00.3]} 5... c6 {[%clk 0:02:41.8]} 6. Qc2 {[%clk 0:03:01.8]} 6... Be7 {[%clk
0:02:41.2]} 7. e3 {[%clk 0:03:02.7]} 7... Nbd7 {[%clk 0:02:40.7]} 8. Bd3 {[%clk
0:03:04]} 8... h6 {[%clk 0:02:41.7]} 9. Bh4 {[%clk 0:03:04.9]} 9... Nh5 {[%clk
0:02:42.7]} 10. Bxe7 {[%clk 0:03:05]} 10... Qxe7 {[%clk 0:02:43.9]} 11. O-O-O
{[%clk 0:03:06]} 11... Nb6 {[%clk 0:02:43.9]} 12. h3 {[%clk 0:03:05.9]} 12...
Nf6 {[%clk 0:02:39.7]} 13. Nf3 {[%clk 0:03:07.2]} 13... Be6 {[%clk 0:02:39.7]}
14. Kb1 {[%clk 0:03:07.4]} 14... Nfd7 {[%clk 0:02:40.4]} 15. g4 {[%clk
0:03:05.4]} 15... O-O-O {[%clk 0:02:40.2]} 16. Na4 {[%clk 0:03:05.5]} 16... Nxa4
{[%clk 0:02:38.8]} 17. Qxa4 {[%clk 0:03:07.4]} 17... Kb8 {[%clk 0:02:39.8]} 18.
Rc1 {[%clk 0:03:07.9]} 18... Nb6 {[%clk 0:02:40.1]} 19. Qc2 {[%clk 0:03:03.7]}
19... h5 {[%clk 0:02:41.1]} 20. Ne5 {[%clk 0:03:03.4]} 20... Rc8 {[%clk
0:02:31.9]} 21. f4 {[%clk 0:03:01.6]} 21... hxg4 {[%clk 0:02:23]} 22. hxg4
{[%clk 0:03:03.5]} 22... Rxh1 {[%clk 0:02:23.7]} 23. Rxh1 {[%clk 0:03:05.4]}
23... f6 {[%clk 0:02:24.9]} 24. Ng6 {[%clk 0:03:04]} 24... Qb4 {[%clk
0:02:24.7]} 25. f5 {[%clk 0:02:59]} 25... Bf7 {[%clk 0:02:23]} 26. Nf4 {[%clk
0:02:55.8]} 26... c5 {[%clk 0:02:23.3]} 27. Qc3 {[%clk 0:02:53.3]} 27... Qxc3
{[%clk 0:02:15]} 28. bxc3 {[%clk 0:02:55.2]} 28... Na4 {[%clk 0:02:16.1]} 29.
Ne2 {[%clk 0:02:45.3]} 29... cxd4 {[%clk 0:01:58.5]} 30. cxd4 {[%clk 0:02:47.2]}
30... Nc3+ {[%clk 0:01:59.1]} 31. Kb2 {[%clk 0:02:47.3]} 31... Nxe2 {[%clk
0:01:57.5]} 32. Bxe2 {[%clk 0:02:48.5]} 32... Re8 {[%clk 0:01:58]} 33. Rh3
{[%clk 0:02:48.8]} 33... g6 {[%clk 0:01:56.9]} 34. Bd3 {[%clk 0:02:46.9]} 34...
gxf5 {[%clk 0:01:54.9]} 35. gxf5 {[%clk 0:02:48.8]} 35... Kc7 {[%clk 0:01:47.7]}
36. Rh7 {[%clk 0:02:43.5]} 36... Re7 {[%clk 0:01:47.9]} 37. Kc3 {[%clk
0:02:40.8]} 37... Kd6 {[%clk 0:01:48.7]} 38. Rh6 {[%clk 0:02:40.5]} 38... Rxe3
{[%clk 0:01:46.3]} 39. Rxf6+ {[%clk 0:02:41.8]} 39... Ke7 {[%clk 0:01:47.4]} 40.
Rh6 {[%clk 0:02:42.6]} 40... Rf3 {[%clk 0:01:47.6]} 41. a3 {[%clk 0:02:35.8]}
41... a6 {[%clk 0:01:43.5]} 42. Rb6 {[%clk 0:02:34.2]} 42... Be8 {[%clk
0:01:37.2]} 43. Rxb7+ {[%clk 0:02:34.7]} 43... Kf6 {[%clk 0:01:38.2]} 44. Rb6+
{[%clk 0:02:35.9]} 44... Kf7 {[%clk 0:01:36.4]} 45. Kd2 {[%clk 0:02:32.8]} 45...
Bd7 {[%clk 0:01:19]} 46. Ke2 {[%clk 0:02:29.1]} 46... Rg3 {[%clk 0:01:12.6]} 47.
Rxa6 {[%clk 0:02:23.5]} 47... Rxd3 {[%clk 0:01:12.3]} 48. Ra7 {[%clk 0:02:23.3]}
48... Ke8 {[%clk 0:01:08.4]} 49. Kxd3 {[%clk 0:02:23.6]} 1-0

[Event "*** Titled Tuesday 3|2 Blitz"]
[Site "Chess.com"]
[Date "2016.02.02"]
[Round "2"]
[White "Maitreia"]
[Black "Hikaru"]
[Result "0-1"]
[WhiteElo "2464"]
[BlackElo "2864"]
[TimeControl "180+2"]
[EndTime "11:24:16 PST"]
[Termination "Hikaru won by resignation"]

1. c4 {[%clk 0:03:01.9]} 1... e5 {[%clk 0:02:59.8]} 2. g3 {[%clk 0:02:51.9]}
2... f5 {[%clk 0:03:00.2]} 3. Bg2 {[%clk 0:02:52.6]} 3... Nc6 {[%clk 0:03:01.2]}
4. d3 {[%clk 0:02:50.1]} 4... d6 {[%clk 0:03:01]} 5. Nc3 {[%clk 0:02:50.3]} 5...
g6 {[%clk 0:03:02.1]} 6. Nf3 {[%clk 0:02:50.9]} 6... Bg7 {[%clk 0:03:01.8]} 7.
O-O {[%clk 0:02:51.4]} 7... Nf6 {[%clk 0:02:57.1]} 8. Rb1 {[%clk 0:02:51.3]}
8... a5 {[%clk 0:02:58.4]} 9. a3 {[%clk 0:02:52.1]} 9... O-O {[%clk 0:03:00.1]}
10. b4 {[%clk 0:02:53.2]} 10... axb4 {[%clk 0:03:01.7]} 11. axb4 {[%clk
0:02:55.1]} 11... h6 {[%clk 0:03:02.9]} 12. b5 {[%clk 0:02:56.6]} 12... Ne7
{[%clk 0:03:04.1]} 13. Bb2 {[%clk 0:02:57.5]} 13... g5 {[%clk 0:03:05.2]} 14. c5
{[%clk 0:02:43.3]} 14... Ng6 {[%clk 0:03:02.7]} 15. Qb3+ {[%clk 0:02:42.2]}
15... Kh7 {[%clk 0:02:59.6]} 16. cxd6 {[%clk 0:02:42.4]} 16... cxd6 {[%clk
0:03:01.5]} 17. Nd2 {[%clk 0:02:42.2]} 17... Re8 {[%clk 0:02:50.8]} 18. Rfc1
{[%clk 0:02:41.4]} 18... Be6 {[%clk 0:02:51.6]} 19. Qd1 {[%clk 0:02:28.7]} 19...
d5 {[%clk 0:02:51.8]} 20. Ra1 {[%clk 0:02:05.4]} 20... Rxa1 {[%clk 0:02:47.5]}
21. Rxa1 {[%clk 0:02:03.7]} 21... e4 {[%clk 0:02:49.4]} 22. Nb3 {[%clk
0:01:58.4]} 22... e3 {[%clk 0:02:40.4]} 23. fxe3 {[%clk 0:01:42.3]} 23... Ng4
{[%clk 0:02:41.4]} 24. Qd2 {[%clk 0:01:41.7]} 24... f4 {[%clk 0:02:36.5]} 25.
exf4 {[%clk 0:01:31.7]} 25... d4 {[%clk 0:02:37.4]} 26. Ne4 {[%clk 0:01:19.4]}
26... Bxb3 {[%clk 0:02:37.9]} 27. fxg5 {[%clk 0:01:20.5]} 27... Bd5 {[%clk
0:02:39.5]} 28. Qb4 {[%clk 0:00:53.2]} 28... Ne3 {[%clk 0:02:32.1]} 29. gxh6
{[%clk 0:00:44.6]} 29... Be5 {[%clk 0:02:33.1]} 30. Bf3 {[%clk 0:00:30.4]} 30...
Nc2 {[%clk 0:02:33.9]} 31. Qa4 {[%clk 0:00:29.7]} 31... Nxa1 {[%clk 0:02:34.2]}
32. Qxa1 {[%clk 0:00:31.6]} 32... Rf8 {[%clk 0:02:24.1]} 33. Bxd4 {[%clk
0:00:26.3]} 33... Bxe4 {[%clk 0:02:24.4]} 34. Bxe5 {[%clk 0:00:27.6]} 34... Bxf3
{[%clk 0:02:25.5]} 35. exf3 {[%clk 0:00:17.4]} 35... Rxf3 {[%clk 0:02:25.6]} 36.
Bf4 {[%clk 0:00:15.2]} 36... Qe7 {[%clk 0:02:25.2]} 37. Kg2 {[%clk 0:00:15.3]}
37... Rxd3 {[%clk 0:02:23]} 38. Bg5 {[%clk 0:00:10.1]} 38... Qe4+ {[%clk
0:02:22.2]} 39. Kh3 {[%clk 0:00:09.3]} 39... Ne5 {[%clk 0:02:20.6]} 40. Qf1
{[%clk 0:00:05.5]} 40... Qg4+ {[%clk 0:02:20.5]} 41. Kg2 {[%clk 0:00:07]} 41...
Qxg5 {[%clk 0:02:21.8]} 42. Qf8 {[%clk 0:00:04.4]} 42... Rd2+ {[%clk 0:02:21.5]}
43. Kf1 {[%clk 0:00:03.3]} 43... Rd1+ {[%clk 0:02:20.1]} 44. Kg2 {[%clk
0:00:04.7]} 44... Qd2+ {[%clk 0:02:21.2]} 0-1

[Event "*** Titled Tuesday 3|2 Blitz"]
[Site "Chess.com"]
[Date "2016.02.02"]
[Round "2"]
[White "swayamsm"]
[Black "amaidel"]
[Result "1-0"]
[WhiteElo "2578"]
[BlackElo "2401"]
[TimeControl "180+2"]
[EndTime "11:24:16 PST"]
[Termination "swayamsm won by resignation"]

1. d4 {[%clk 0:03:01.9]} 1... d5 {[%clk 0:03:00.3]} 2. c4 {[%clk 0:03:03.1]}
2... c6 {[%clk 0:03:01.2]} 3. Nf3 {[%clk 0:03:00.8]} 3... Nf6 {[%clk 0:03:01.8]}
4. Nc3 {[%clk 0:03:02.3]} 4... dxc4 {[%clk 0:03:01.3]} 5. a4 {[%clk 0:02:56.3]}
5... Bg4 {[%clk 0:03:02]} 6. Ne5 {[%clk 0:02:57.3]} 6... Nbd7 {[%clk 0:03:02.4]}
7. Nxg4 {[%clk 0:02:56.9]} 7... Nxg4 {[%clk 0:03:03.3]} 8. e3 {[%clk 0:02:58.4]}
8... Ngf6 {[%clk 0:03:03.7]} 9. Bxc4 {[%clk 0:02:59.8]} 9... e6 {[%clk
0:03:04.9]} 10. O-O {[%clk 0:03:00.9]} 10... Bb4 {[%clk 0:03:04.5]} 11. Qb3
{[%clk 0:02:53.3]} 11... a5 {[%clk 0:03:04.6]} 12. Na2 {[%clk 0:02:53.1]} 12...
c5 {[%clk 0:03:04.4]} 13. Nxb4 {[%clk 0:02:45.8]} 13... cxb4 {[%clk 0:03:03.1]}
14. Bd2 {[%clk 0:02:35.9]} 14... O-O {[%clk 0:03:03.7]} 15. f3 {[%clk
0:02:32.3]} 15... Rc8 {[%clk 0:03:01.1]} 16. Rac1 {[%clk 0:02:32.7]} 16... Qe7
{[%clk 0:02:58.3]} 17. e4 {[%clk 0:02:32.3]} 17... e5 {[%clk 0:02:58.3]} 18. Be3
{[%clk 0:02:31.3]} 18... exd4 {[%clk 0:02:56.5]} 19. Bxd4 {[%clk 0:02:33.2]}
19... Nc5 {[%clk 0:02:56.7]} 20. Qe3 {[%clk 0:02:14.4]} 20... Nxa4 {[%clk
0:02:33.2]} 21. Bb5 {[%clk 0:02:09.9]} 21... Nxb2 {[%clk 0:02:05.7]} 22. Bxb2
{[%clk 0:02:09.8]} 22... Nd5 {[%clk 0:02:06.8]} 23. Qd4 {[%clk 0:01:59.7]} 23...
Nf6 {[%clk 0:02:02.3]} 24. Qb6 {[%clk 0:01:53.7]} 24... Rxc1 {[%clk 0:01:58.7]}
25. Rxc1 {[%clk 0:01:54.2]} 25... Rd8 {[%clk 0:01:58.7]} 26. Qxa5 {[%clk
0:01:42]} 26... h5 {[%clk 0:01:47.2]} 27. Qc7 {[%clk 0:01:11.3]} 27... Rd1+
{[%clk 0:01:44.8]} 28. Bf1 {[%clk 0:01:12.2]} 28... Rd7 {[%clk 0:01:37.8]} 29.
Qc5 {[%clk 0:01:01.2]} 29... Qd8 {[%clk 0:01:35.3]} 30. Qxb4 {[%clk 0:00:56.9]}
30... Rd2 {[%clk 0:01:36.2]} 31. Qxb7 {[%clk 0:00:45.9]} 31... Kh7 {[%clk
0:01:36.8]} 32. Bxf6 {[%clk 0:00:28.5]} 32... Qxf6 {[%clk 0:01:36.6]} 33. Qb5
{[%clk 0:00:17.1]} 33... g6 {[%clk 0:01:34.5]} 34. Kh1 {[%clk 0:00:17]} 34... h4
{[%clk 0:01:34.7]} 35. h3 {[%clk 0:00:17.8]} 35... Qf4 {[%clk 0:01:34.6]} 36.
Qc5 {[%clk 0:00:18.5]} 36... Rf2 {[%clk 0:01:34.1]} 37. Qxf2 {[%clk 0:00:18.9]}
1-0

[Event "*** Titled Tuesday 3|2 Blitz"]
[Site "Chess.com"]
[Date "2016.02.02"]
[Round "2"]
[White "FairChess_on_YouTube"]
[Black "tac49"]
[Result "1-0"]
[WhiteElo "2757"]
[BlackElo "2459"]
[TimeControl "180+2"]
[EndTime "11:24:29 PST"]
[Termination "FairChess_on_YouTube won by resignation"]

1. e4 {[%clk 0:03:01.9]} 1... e5 {[%clk 0:02:58.9]} 2. Nf3 {[%clk 0:03:02.5]}
2... Nc6 {[%clk 0:02:57.6]} 3. Bb5 {[%clk 0:03:03]} 3... a6 {[%clk 0:02:57.3]}
4. Ba4 {[%clk 0:03:03.4]} 4... Nf6 {[%clk 0:02:56.8]} 5. O-O {[%clk 0:03:03.9]}
5... Be7 {[%clk 0:02:56.2]} 6. Bxc6 {[%clk 0:03:03.9]} 6... dxc6 {[%clk
0:02:58]} 7. d3 {[%clk 0:03:05]} 7... Nd7 {[%clk 0:02:53.7]} 8. Nbd2 {[%clk
0:03:05.6]} 8... O-O {[%clk 0:02:50.9]} 9. Nc4 {[%clk 0:03:06.1]} 9... f6 {[%clk
0:02:49.6]} 10. Nh4 {[%clk 0:03:06.5]} 10... Nc5 {[%clk 0:02:39.7]} 11. b3
{[%clk 0:03:07.5]} 11... Ne6 {[%clk 0:02:29]} 12. Nf5 {[%clk 0:03:07.1]} 12...
Nd4 {[%clk 0:02:24.4]} 13. Nxd4 {[%clk 0:02:32.2]} 13... Qxd4 {[%clk 0:02:19.1]}
14. Bb2 {[%clk 0:02:33]} 14... Qd8 {[%clk 0:02:07.8]} 15. Ne3 {[%clk 0:02:33.2]}
15... Bc5 {[%clk 0:02:01.9]} 16. Qf3 {[%clk 0:02:29.2]} 16... Qe8 {[%clk
0:01:52]} 17. Rae1 {[%clk 0:02:26.1]} 17... Be6 {[%clk 0:01:47.5]} 18. Nf5
{[%clk 0:02:26.6]} 18... Rd8 {[%clk 0:01:35.1]} 19. Kh1 {[%clk 0:02:27.2]} 19...
Bxf5 {[%clk 0:01:35.1]} 20. exf5 {[%clk 0:02:26.8]} 20... Qf7 {[%clk 0:01:26.7]}
21. Re4 {[%clk 0:02:26.1]} 21... Bd4 {[%clk 0:01:20.4]} 22. Ba3 {[%clk
0:02:24.7]} 22... Rfe8 {[%clk 0:01:19]} 23. Qh3 {[%clk 0:02:22.2]} 23... b5
{[%clk 0:01:09.9]} 24. Rh4 {[%clk 0:02:14.7]} 24... h6 {[%clk 0:01:09.8]} 25.
Rg4 {[%clk 0:02:14.5]} 25... Kh7 {[%clk 0:01:00.8]} 26. Bc1 {[%clk 0:02:11.2]}
26... Rh8 {[%clk 0:00:44.9]} 27. Rg6 {[%clk 0:01:52.9]} 27... Kg8 {[%clk
0:00:43.6]} 28. Qg3 {[%clk 0:01:46]} 28... Kf8 {[%clk 0:00:39.5]} 29. Re1 {[%clk
0:01:45.8]} 29... Rh7 {[%clk 0:00:38.8]} 30. h3 {[%clk 0:01:37]} 30... c5 {[%clk
0:00:36.8]} 31. Rg4 {[%clk 0:01:29.6]} 31... b4 {[%clk 0:00:35.7]} 32. Rge4
{[%clk 0:01:27.9]} 32... a5 {[%clk 0:00:33.2]} 33. f4 {[%clk 0:01:27.6]} 33...
Re8 {[%clk 0:00:18.4]} 34. fxe5 {[%clk 0:01:24.9]} 34... Rxe5 {[%clk 0:00:18.7]}
35. Bf4 {[%clk 0:01:20.2]} 35... Rxe4 {[%clk 0:00:17.9]} 36. Rxe4 {[%clk
0:01:21.8]} 36... Qd5 {[%clk 0:00:15.6]} 1-0

[Event "*** Titled Tuesday 3|2 Blitz"]
[Site "Chess.com"]
[Date "2016.02.02"]
[Round "2"]
[White "GMVar"]
[Black "GMHess"]
[Result "1-0"]
[WhiteElo "2705"]
[BlackElo "2471"]
[TimeControl "180+2"]
[EndTime "11:24:34 PST"]
[Termination "GMVar won by resignation"]

1. d4 {[%clk 0:03:01.9]} 1... Nf6 {[%clk 0:02:57.2]} 2. c4 {[%clk 0:03:02.5]}
2... e6 {[%clk 0:02:58]} 3. Nf3 {[%clk 0:03:03]} 3... d5 {[%clk 0:02:58.3]} 4.
Nc3 {[%clk 0:03:01.9]} 4... Be7 {[%clk 0:02:58.9]} 5. g4 {[%clk 0:03:00.4]} 5...
O-O {[%clk 0:02:56.9]} 6. g5 {[%clk 0:02:58.3]} 6... Ne4 {[%clk 0:02:54.8]} 7.
h4 {[%clk 0:02:59.4]} 7... c5 {[%clk 0:02:48.5]} 8. dxc5 {[%clk 0:02:56.2]} 8...
Nxc3 {[%clk 0:02:37.5]} 9. bxc3 {[%clk 0:02:56.1]} 9... dxc4 {[%clk 0:02:39.1]}
10. Qxd8 {[%clk 0:02:53]} 10... Rxd8 {[%clk 0:02:39.3]} 11. Be3 {[%clk 0:02:52]}
11... Na6 {[%clk 0:02:28.6]} 12. c6 {[%clk 0:02:48.5]} 12... bxc6 {[%clk
0:02:20.2]} 13. Bg2 {[%clk 0:02:47.1]} 13... Bd7 {[%clk 0:01:45]} 14. Ne5 {[%clk
0:02:44.6]} 14... Rac8 {[%clk 0:01:28.1]} 15. Nxc4 {[%clk 0:02:27.1]} 15... Bc5
{[%clk 0:01:08.6]} 16. O-O-O {[%clk 0:02:20.4]} 16... Bxe3+ {[%clk 0:00:52.3]}
17. fxe3 {[%clk 0:02:11.7]} 17... Nc7 {[%clk 0:00:34.6]} 18. Nd6 {[%clk
0:02:06.6]} 18... Rb8 {[%clk 0:00:31.9]} 19. Rhf1 {[%clk 0:02:08]} 19... Be8
{[%clk 0:00:25.1]} 20. Nxe8 {[%clk 0:02:01.2]} 20... Nxe8 {[%clk 0:00:26.8]} 21.
Rxd8 {[%clk 0:01:59]} 21... Rxd8 {[%clk 0:00:28.7]} 22. Bxc6 {[%clk 0:01:59.4]}
22... Nd6 {[%clk 0:00:30]} 23. Rd1 {[%clk 0:01:50.3]} 23... Kf8 {[%clk
0:00:31.2]} 24. Rd4 {[%clk 0:01:46.7]} 24... a5 {[%clk 0:00:19.8]} 25. c4 {[%clk
0:01:27.9]} 25... Ke7 {[%clk 0:00:20.9]} 26. c5 {[%clk 0:01:28.2]} 26... Nf5
{[%clk 0:00:22]} 27. Rxd8 {[%clk 0:01:26.9]} 27... Kxd8 {[%clk 0:00:23.1]} 28.
Be4 {[%clk 0:01:26.7]} 28... Kc7 {[%clk 0:00:10.6]} 29. Kc2 {[%clk 0:01:19.3]}
29... Nxe3+ {[%clk 0:00:11.2]} 30. Kd3 {[%clk 0:01:18.4]} 30... Ng4 {[%clk
0:00:12.2]} 31. Bxh7 {[%clk 0:01:15.9]} 31... Kc6 {[%clk 0:00:13.7]} 32. Kd4
{[%clk 0:01:11.9]} 32... f5 {[%clk 0:00:09]} 33. h5 {[%clk 0:01:02.5]} 33... e5+
{[%clk 0:00:09.3]} 34. Kd3 {[%clk 0:01:00.4]} 34... Kxc5 {[%clk 0:00:08.2]} 35.
Bxf5 {[%clk 0:00:59.4]} 35... Nf2+ {[%clk 0:00:09.6]} 36. Ke3 {[%clk 0:00:56.4]}
1-0